[Event "Early-Titled-Tuesday-Blitz-September-05-2023"]
[Site "Chess.com"]
[Date "2023.09.05"]
[Round "5"]
[White "sebastianmarinp"]
[Black "szachuspl"]
[Result "0-1"]
[WhiteElo "2402"]
[BlackElo "2540"]
[TimeControl "180+1"]
[EndTime "8:55:29 PDT"]
[Termination "szachuspl won on time"]

1. e4 {[%clk 0:03:00.5]} 1... d5 {[%clk 0:02:58.8]} 2. exd5 {[%clk 0:02:59.8]}
2... Nf6 {[%clk 0:02:59.2]} 3. Nf3 {[%clk 0:02:56.3]} 3... Nxd5 {[%clk
0:02:58.9]} 4. d4 {[%clk 0:02:54.1]} 4... g6 {[%clk 0:02:58.6]} 5. h3 {[%clk
0:02:48.3]} 5... Bg7 {[%clk 0:02:58.4]} 6. Bc4 {[%clk 0:02:43.4]} 6... O-O
{[%clk 0:02:57.8]} 7. O-O {[%clk 0:02:43.5]} 7... Nc6 {[%clk 0:02:57.2]} 8. Bb3
{[%clk 0:02:39.4]} 8... a5 {[%clk 0:02:56.5]} 9. a4 {[%clk 0:02:37.6]} 9... Bf5
{[%clk 0:02:53.4]} 10. Na3 {[%clk 0:02:27.8]} 10... Ndb4 {[%clk 0:02:45.9]} 11.
c3 {[%clk 0:02:18.4]} 11... Nd3 {[%clk 0:02:21.8]} 12. Bc2 {[%clk 0:02:16.6]}
12... Nxc1 {[%clk 0:02:18.3]} 13. Bxf5 {[%clk 0:02:16]} 13... gxf5 {[%clk
0:02:15.9]} 14. Qxc1 {[%clk 0:02:15.9]} 14... e6 {[%clk 0:02:16.4]} 15. Nb5
{[%clk 0:02:11.8]} 15... Ne7 {[%clk 0:02:14.7]} 16. Qf4 {[%clk 0:02:09.7]} 16...
Nd5 {[%clk 0:02:14.7]} 17. Qg3 {[%clk 0:01:56.3]} 17... Kh8 {[%clk 0:02:15]} 18.
c4 {[%clk 0:01:54.2]} 18... f4 {[%clk 0:01:58.9]} 19. Qg4 {[%clk 0:01:52.5]}
19... f5 {[%clk 0:01:58.9]} 20. Qh5 {[%clk 0:01:45.7]} 20... Nf6 {[%clk
0:01:39.1]} 21. Qh4 {[%clk 0:01:45.3]} 21... c6 {[%clk 0:01:38.6]} 22. Nc3
{[%clk 0:01:41.8]} 22... Qc7 {[%clk 0:01:23.7]} 23. Rfe1 {[%clk 0:01:36.2]}
23... Rae8 {[%clk 0:01:23.3]} 24. Ne5 {[%clk 0:01:31.8]} 24... Kg8 {[%clk
0:01:23]} 25. Qxf4 {[%clk 0:01:29.3]} 25... Nd7 {[%clk 0:01:18.3]} 26. Nd3
{[%clk 0:01:12.6]} 26... Qxf4 {[%clk 0:01:12.7]} 27. Nxf4 {[%clk 0:01:13.5]}
27... e5 {[%clk 0:01:11.7]} 28. dxe5 {[%clk 0:01:07.2]} 28... Bxe5 {[%clk
0:01:10]} 29. Nd3 {[%clk 0:01:06.2]} 29... Bd4 {[%clk 0:01:03.8]} 30. Rad1
{[%clk 0:01:01.2]} 30... Rxe1+ {[%clk 0:01:03]} 31. Nxe1 {[%clk 0:00:56.2]}
31... Bxc3 {[%clk 0:01:03.1]} 32. bxc3 {[%clk 0:00:56.6]} 32... Nc5 {[%clk
0:01:03.3]} 33. Nf3 {[%clk 0:00:40.6]} 33... Re8 {[%clk 0:00:58.6]} 34. Nd4
{[%clk 0:00:36]} 34... f4 {[%clk 0:00:55]} 35. Kf1 {[%clk 0:00:28.4]} 35... Kf7
{[%clk 0:00:54.6]} 36. Nf5 {[%clk 0:00:26.3]} 36... Kf6 {[%clk 0:00:54.4]} 37.
Nd6 {[%clk 0:00:24.5]} 37... Re7 {[%clk 0:00:54.5]} 38. Nc8 {[%clk 0:00:23.2]}
38... Rc7 {[%clk 0:00:46]} 39. Nb6 {[%clk 0:00:22.2]} 39... Re7 {[%clk
0:00:42.4]} 40. Rd6+ {[%clk 0:00:21.6]} 40... Kf5 {[%clk 0:00:38.5]} 41. Rd8
{[%clk 0:00:19.1]} 41... h6 {[%clk 0:00:37.5]} 42. Rf8+ {[%clk 0:00:18.4]} 42...
Kg5 {[%clk 0:00:36.2]} 43. g3 {[%clk 0:00:12.4]} 43... fxg3 {[%clk 0:00:33.6]}
44. fxg3 {[%clk 0:00:13.3]} 44... Re3 {[%clk 0:00:32.7]} 45. Kf2 {[%clk
0:00:12.2]} 45... Rxc3 {[%clk 0:00:32.2]} 46. h4+ {[%clk 0:00:12]} 46... Kg6
{[%clk 0:00:31.7]} 47. g4 {[%clk 0:00:11.1]} 47... Rb3 {[%clk 0:00:29.7]} 48.
Nc8 {[%clk 0:00:10.7]} 48... Nxa4 {[%clk 0:00:24.1]} 49. Nd6 {[%clk 0:00:09.9]}
49... Nc5 {[%clk 0:00:22.7]} 50. Rg8+ {[%clk 0:00:05.9]} 50... Kh7 {[%clk
0:00:22]} 51. Rf8 {[%clk 0:00:02.8]} 51... a4 {[%clk 0:00:20.8]} 52. g5 {[%clk
0:00:02.6]} 52... hxg5 {[%clk 0:00:20.9]} 53. hxg5 {[%clk 0:00:03.5]} 53... Ne6
{[%clk 0:00:20.3]} 54. Rf7+ {[%clk 0:00:03.4]} 54... Kg8 {[%clk 0:00:19.3]} 55.
g6 {[%clk 0:00:03.6]} 55... a3 {[%clk 0:00:17.8]} 56. Rf6 {[%clk 0:00:03.8]}
56... a2 {[%clk 0:00:15.6]} 57. Rxe6 {[%clk 0:00:04.1]} 57... a1=Q {[%clk
0:00:14.8]} 58. Nf5 {[%clk 0:00:03.8]} 58... Qa2+ {[%clk 0:00:12.3]} 59. Kf1
{[%clk 0:00:02.9]} 59... Rb1+ {[%clk 0:00:12.6]} 0-1

[Event "Early-Titled-Tuesday-Blitz-September-05-2023"]
[Site "Chess.com"]
[Date "2023.09.05"]
[Round "5"]
[White "Harry_Rakkel"]
[Black "Vladimir_Zakhartsov"]
[Result "1-0"]
[WhiteElo "2667"]
[BlackElo "2872"]
[TimeControl "180+1"]
[EndTime "8:55:30 PDT"]
[Termination "Harry_Rakkel won by resignation"]

1. e4 {[%clk 0:03:00.9]} 1... c6 {[%clk 0:02:59]} 2. Nf3 {[%clk 0:02:56.8]} 2...
d5 {[%clk 0:02:58]} 3. d3 {[%clk 0:02:56.8]} 3... Na6 {[%clk 0:02:54.6]} 4. Nbd2
{[%clk 0:02:51.4]} 4... Nc7 {[%clk 0:02:54.1]} 5. g3 {[%clk 0:02:48.8]} 5... g6
{[%clk 0:02:53.9]} 6. Bg2 {[%clk 0:02:48.1]} 6... Bg7 {[%clk 0:02:54.4]} 7. O-O
{[%clk 0:02:47.7]} 7... f6 {[%clk 0:02:52.9]} 8. d4 {[%clk 0:02:41.9]} 8... Nh6
{[%clk 0:02:51.2]} 9. h3 {[%clk 0:02:36.1]} 9... O-O {[%clk 0:02:50.8]} 10. c4
{[%clk 0:02:35.1]} 10... Nf7 {[%clk 0:02:49.6]} 11. Re1 {[%clk 0:02:31.2]} 11...
e6 {[%clk 0:02:38.8]} 12. b3 {[%clk 0:02:29.3]} 12... b6 {[%clk 0:02:33.3]} 13.
Ba3 {[%clk 0:02:27.9]} 13... Re8 {[%clk 0:02:33.5]} 14. Rc1 {[%clk 0:02:24.6]}
14... Ba6 {[%clk 0:02:30.8]} 15. cxd5 {[%clk 0:02:18.5]} 15... cxd5 {[%clk
0:02:29.9]} 16. e5 {[%clk 0:02:18]} 16... fxe5 {[%clk 0:02:22.5]} 17. dxe5
{[%clk 0:02:14.6]} 17... Rc8 {[%clk 0:02:18.9]} 18. Bb2 {[%clk 0:02:06.9]} 18...
Qd7 {[%clk 0:02:17.2]} 19. Ne4 {[%clk 0:02:04.5]} 19... Nb5 {[%clk 0:01:45.6]}
20. Nf6+ {[%clk 0:01:57.8]} 20... Bxf6 {[%clk 0:01:45.6]} 21. exf6 {[%clk
0:01:58.7]} 21... Nbd6 {[%clk 0:01:43.3]} 22. Ne5 {[%clk 0:01:47.9]} 22... Nxe5
{[%clk 0:01:42.4]} 23. Bxe5 {[%clk 0:01:48.8]} 23... Nf7 {[%clk 0:01:42.5]} 24.
Bb2 {[%clk 0:01:46.8]} 24... Rxc1 {[%clk 0:01:42.1]} 25. Qxc1 {[%clk 0:01:46.3]}
25... e5 {[%clk 0:01:38.8]} 26. Qd2 {[%clk 0:01:42.9]} 26... Bb7 {[%clk
0:01:31.1]} 27. f4 {[%clk 0:01:26.1]} 27... d4 {[%clk 0:01:00.6]} 28. fxe5
{[%clk 0:01:21.3]} 28... Bxg2 {[%clk 0:00:57.3]} 29. Qxg2 {[%clk 0:01:15.1]}
29... Nxe5 {[%clk 0:00:46.9]} 30. Rd1 {[%clk 0:00:35.1]} 30... Qf5 {[%clk
0:00:30.7]} 31. Kh1 {[%clk 0:00:30.3]} 31... Nf3 {[%clk 0:00:23.2]} 32. Rf1
{[%clk 0:00:28.2]} 32... Re2 {[%clk 0:00:16.9]} 33. f7+ {[%clk 0:00:20.8]} 33...
Kg7 {[%clk 0:00:05.5]} 34. f8=Q+ {[%clk 0:00:17.6]} 34... Kxf8 {[%clk
0:00:03.7]} 35. Qxf3 {[%clk 0:00:17.7]} 35... Qxf3+ {[%clk 0:00:04.2]} 36. Rxf3+
{[%clk 0:00:17.5]} 36... Ke7 {[%clk 0:00:05.1]} 37. Bxd4 {[%clk 0:00:17.6]}
37... Rxa2 {[%clk 0:00:05.2]} 38. Rf2 {[%clk 0:00:17.9]} 38... Ra3 {[%clk
0:00:04.4]} 39. Rb2 {[%clk 0:00:17.9]} 39... Ra1+ {[%clk 0:00:03.4]} 40. Kg2
{[%clk 0:00:18.1]} 40... Rd1 {[%clk 0:00:04.1]} 41. Be3 {[%clk 0:00:17.8]} 41...
Rd3 {[%clk 0:00:04.2]} 42. Kf3 {[%clk 0:00:17.8]} 42... Kd7 {[%clk 0:00:03.4]}
43. Ke4 {[%clk 0:00:17.9]} 43... Rc3 {[%clk 0:00:03.4]} 44. h4 {[%clk
0:00:17.8]} 44... Ke6 {[%clk 0:00:03.4]} 45. g4 {[%clk 0:00:17.9]} 45... Rc8
{[%clk 0:00:02]} 46. Re2 {[%clk 0:00:17]} 46... Rc3 {[%clk 0:00:01.8]} 47. b4
{[%clk 0:00:15.9]} 47... Rc4+ {[%clk 0:00:01.9]} 48. Kf3 {[%clk 0:00:16.2]}
48... Kd5 {[%clk 0:00:01.8]} 49. Rd2+ {[%clk 0:00:16.2]} 49... Kc6 {[%clk
0:00:01.8]} 50. Rd4 {[%clk 0:00:15.9]} 50... Rxd4 {[%clk 0:00:01.4]} 51. Bxd4
{[%clk 0:00:16.2]} 51... Kd5 {[%clk 0:00:02.3]} 52. Bc3 {[%clk 0:00:16.3]} 52...
h5 {[%clk 0:00:02]} 53. gxh5 {[%clk 0:00:16]} 53... gxh5 {[%clk 0:00:02.9]} 54.
Kf4 {[%clk 0:00:16.5]} 54... Kc4 {[%clk 0:00:03.4]} 55. Be1 {[%clk 0:00:16.6]}
55... a5 {[%clk 0:00:02.2]} 56. bxa5 {[%clk 0:00:16.4]} 56... bxa5 {[%clk
0:00:03.1]} 57. Bxa5 {[%clk 0:00:16.4]} 57... Kd5 {[%clk 0:00:04]} 58. Kg5
{[%clk 0:00:14]} 58... Ke6 {[%clk 0:00:04.9]} 59. Kxh5 {[%clk 0:00:14.2]} 59...
Kf7 {[%clk 0:00:05.8]} 60. Kh6 {[%clk 0:00:14.5]} 60... Kg8 {[%clk 0:00:06.7]}
61. Kg6 {[%clk 0:00:14.9]} 61... Kh8 {[%clk 0:00:07.6]} 62. h5 {[%clk
0:00:15.3]} 62... Kg8 {[%clk 0:00:08.5]} 63. h6 {[%clk 0:00:15.6]} 63... Kh8
{[%clk 0:00:09.4]} 64. Bc3+ {[%clk 0:00:15.1]} 64... Kg8 {[%clk 0:00:10.3]} 65.
h7+ {[%clk 0:00:15.5]} 1-0

[Event "Early-Titled-Tuesday-Blitz-September-05-2023"]
[Site "Chess.com"]
[Date "2023.09.05"]
[Round "5"]
[White "Duong57"]
[Black "Fh2411"]
[Result "1-0"]
[WhiteElo "2484"]
[BlackElo "2596"]
[TimeControl "180+1"]
[EndTime "8:55:30 PDT"]
[Termination "Duong57 won by resignation"]

1. d4 {[%clk 0:03:00.9]} 1... Nf6 {[%clk 0:02:59.9]} 2. c4 {[%clk 0:02:57.8]}
2... e6 {[%clk 0:03:00.6]} 3. Nc3 {[%clk 0:02:55.3]} 3... Bb4 {[%clk 0:03:01.1]}
4. Qc2 {[%clk 0:02:54]} 4... O-O {[%clk 0:03:01.2]} 5. a3 {[%clk 0:02:53]} 5...
Bxc3+ {[%clk 0:02:59]} 6. Qxc3 {[%clk 0:02:53.9]} 6... d5 {[%clk 0:02:59]} 7.
cxd5 {[%clk 0:02:20.9]} 7... exd5 {[%clk 0:02:53.6]} 8. Bf4 {[%clk 0:02:11.6]}
8... c6 {[%clk 0:02:53.8]} 9. e3 {[%clk 0:02:11.4]} 9... Bf5 {[%clk 0:02:52.7]}
10. Bd3 {[%clk 0:02:10.3]} 10... Bxd3 {[%clk 0:02:51.8]} 11. Qxd3 {[%clk
0:02:11.2]} 11... Nbd7 {[%clk 0:02:47.4]} 12. Nf3 {[%clk 0:02:09.4]} 12... Ne4
{[%clk 0:02:35.4]} 13. O-O {[%clk 0:02:08.5]} 13... Qe7 {[%clk 0:02:33.1]} 14.
h3 {[%clk 0:01:50.6]} 14... Rfe8 {[%clk 0:02:32]} 15. Ne5 {[%clk 0:01:46.5]}
15... Nb6 {[%clk 0:02:22.8]} 16. b3 {[%clk 0:01:32.7]} 16... a6 {[%clk
0:02:16.1]} 17. Qc2 {[%clk 0:01:26.2]} 17... Nc8 {[%clk 0:01:40]} 18. Nd3 {[%clk
0:01:24.3]} 18... Ncd6 {[%clk 0:01:38.9]} 19. a4 {[%clk 0:01:02.9]} 19... Rad8
{[%clk 0:01:37.8]} 20. f3 {[%clk 0:00:49.1]} 20... Nf6 {[%clk 0:01:35.5]} 21.
Nc5 {[%clk 0:00:48.7]} 21... Nh5 {[%clk 0:01:21.9]} 22. Be5 {[%clk 0:00:48.4]}
22... f6 {[%clk 0:01:14.4]} 23. Bxd6 {[%clk 0:00:45.4]} 23... Rxd6 {[%clk
0:01:07]} 24. Rfe1 {[%clk 0:00:41.3]} 24... g6 {[%clk 0:00:50.6]} 25. e4 {[%clk
0:00:34.2]} 25... dxe4 {[%clk 0:00:49.2]} 26. Rxe4 {[%clk 0:00:33.8]} 26... Qf7
{[%clk 0:00:45.4]} 27. Rxe8+ {[%clk 0:00:33.3]} 27... Qxe8 {[%clk 0:00:46.3]}
28. Qc4+ {[%clk 0:00:30.4]} 28... Kg7 {[%clk 0:00:43.8]} 29. Kf2 {[%clk
0:00:28.5]} 29... Qc8 {[%clk 0:00:21]} 30. Re1 {[%clk 0:00:25.2]} 30... Nf4
{[%clk 0:00:12.5]} 31. Re7+ {[%clk 0:00:23]} 31... Kh6 {[%clk 0:00:12.4]} 32.
Ne4 {[%clk 0:00:10.2]} 32... Rd5 {[%clk 0:00:09.6]} 33. Nxf6 {[%clk 0:00:10]}
33... Qf8 {[%clk 0:00:06.8]} 34. Rxh7+ {[%clk 0:00:09.4]} 34... Kg5 {[%clk
0:00:06.2]} 35. Ne4+ {[%clk 0:00:04.3]} 35... Kf5 {[%clk 0:00:04.9]} 36. g4+
{[%clk 0:00:03.3]} 36... Ke6 {[%clk 0:00:04.7]} 37. Ng5+ {[%clk 0:00:03]} 37...
Kf6 {[%clk 0:00:04.2]} 38. Rf7+ {[%clk 0:00:02.5]} 38... Qxf7 {[%clk 0:00:04.7]}
39. Nxf7 {[%clk 0:00:03.2]} 39... Kxf7 {[%clk 0:00:05.6]} 40. Kg3 {[%clk
0:00:03.6]} 40... g5 {[%clk 0:00:04.8]} 41. h4 {[%clk 0:00:03.8]} 41... Ne6
{[%clk 0:00:04.5]} 42. hxg5 {[%clk 0:00:04.1]} 42... Nxg5 {[%clk 0:00:05.2]} 43.
f4 {[%clk 0:00:04.4]} 43... Ne4+ {[%clk 0:00:05.8]} 44. Kh4 {[%clk 0:00:03.9]}
44... Nd6 {[%clk 0:00:06.2]} 45. Qd3 {[%clk 0:00:03.7]} 45... Kg7 {[%clk
0:00:05.5]} 46. Qe3 {[%clk 0:00:03.9]} 46... Nf7 {[%clk 0:00:04.6]} 47. Qe4
{[%clk 0:00:03.4]} 47... b5 {[%clk 0:00:04.7]} 48. g5 {[%clk 0:00:03.4]} 48...
bxa4 {[%clk 0:00:04.1]} 49. bxa4 {[%clk 0:00:04.3]} 49... Rd6 {[%clk 0:00:03.7]}
50. f5 {[%clk 0:00:03.5]} 50... Rd5 {[%clk 0:00:03]} 51. f6+ {[%clk 0:00:03.9]}
51... Kf8 {[%clk 0:00:03.5]} 52. Qe7+ {[%clk 0:00:03.7]} 52... Kg8 {[%clk
0:00:03.6]} 53. Qe8+ {[%clk 0:00:04.2]} 1-0

[Event "Early-Titled-Tuesday-Blitz-September-05-2023"]
[Site "Chess.com"]
[Date "2023.09.05"]
[Round "5"]
[White "McCarthyStone"]
[Black "karinachess1"]
[Result "0-1"]
[WhiteElo "2423"]
[BlackElo "2597"]
[TimeControl "180+1"]
[EndTime "8:55:43 PDT"]
[Termination "karinachess1 won by resignation"]

1. b3 {[%clk 0:02:55.9]} 1... e5 {[%clk 0:02:59.1]} 2. Bb2 {[%clk 0:02:55.4]}
2... Nc6 {[%clk 0:02:59.2]} 3. e3 {[%clk 0:02:55.7]} 3... g6 {[%clk 0:02:59.3]}
4. d4 {[%clk 0:02:54.9]} 4... Bg7 {[%clk 0:02:59.7]} 5. d5 {[%clk 0:02:54.4]}
5... Nce7 {[%clk 0:02:57.7]} 6. h4 {[%clk 0:02:54.9]} 6... h5 {[%clk 0:02:57.3]}
7. Nh3 {[%clk 0:02:55.3]} 7... d6 {[%clk 0:02:56.4]} 8. Nc3 {[%clk 0:02:54.2]}
8... Nf6 {[%clk 0:02:56.5]} 9. Be2 {[%clk 0:02:50.5]} 9... c6 {[%clk 0:02:39]}
10. dxc6 {[%clk 0:02:45.5]} 10... bxc6 {[%clk 0:02:39.9]} 11. e4 {[%clk
0:02:35.7]} 11... O-O {[%clk 0:02:36.3]} 12. Ng5 {[%clk 0:02:35.5]} 12... d5
{[%clk 0:02:34.5]} 13. Qd2 {[%clk 0:02:26.6]} 13... Qa5 {[%clk 0:02:02.1]} 14.
O-O-O {[%clk 0:01:59.8]} 14... Ba6 {[%clk 0:01:41.1]} 15. Nxd5 {[%clk
0:01:41.1]} 15... Qxd2+ {[%clk 0:01:36.1]} 16. Rxd2 {[%clk 0:01:41.4]} 16...
cxd5 {[%clk 0:01:27.8]} 17. Bxa6 {[%clk 0:01:41.3]} 17... Nxe4 {[%clk
0:01:20.4]} 18. Nxe4 {[%clk 0:01:30.6]} 18... dxe4 {[%clk 0:01:21.3]} 19. Rd7
{[%clk 0:01:27.6]} 19... Nf5 {[%clk 0:01:10.2]} 20. Bb7 {[%clk 0:01:20.7]} 20...
Rad8 {[%clk 0:01:06.9]} 21. Rxd8 {[%clk 0:01:04.5]} 21... Rxd8 {[%clk
0:01:07.8]} 22. Bxe4 {[%clk 0:01:04.6]} 22... Nd4 {[%clk 0:01:01.6]} 23. Bd3
{[%clk 0:00:46]} 23... f5 {[%clk 0:00:44.9]} 24. a4 {[%clk 0:00:25.2]} 24... e4
{[%clk 0:00:34.2]} 25. Bc4+ {[%clk 0:00:25.7]} 25... Kf8 {[%clk 0:00:34.8]} 26.
Ba3+ {[%clk 0:00:20.1]} 26... Ke8 {[%clk 0:00:34.8]} 27. Bc5 {[%clk 0:00:19.5]}
27... a6 {[%clk 0:00:12.2]} 28. Bxa6 {[%clk 0:00:17.4]} 28... Rd5 {[%clk
0:00:11]} 29. Bxd4 {[%clk 0:00:09.5]} 29... Bxd4 {[%clk 0:00:11.9]} 30. Rf1
{[%clk 0:00:07.1]} 30... Bc3 {[%clk 0:00:10.7]} 31. Bb5+ {[%clk 0:00:06.6]}
31... Ke7 {[%clk 0:00:10.7]} 32. Rd1 {[%clk 0:00:04.5]} 32... Bb2+ {[%clk
0:00:10.8]} 33. Kxb2 {[%clk 0:00:04.6]} 33... Rxd1 {[%clk 0:00:11.5]} 34. a5
{[%clk 0:00:05.5]} 34... Kd6 {[%clk 0:00:09.1]} 35. a6 {[%clk 0:00:05.3]} 35...
Kc7 {[%clk 0:00:09.4]} 36. Be8 {[%clk 0:00:05.7]} 36... Rd6 {[%clk 0:00:08.4]}
37. Bb5 {[%clk 0:00:02.4]} 37... Kb6 {[%clk 0:00:08.6]} 38. c4 {[%clk 0:00:03]}
38... f4 {[%clk 0:00:08.1]} 39. Kc3 {[%clk 0:00:03.3]} 39... Re6 {[%clk
0:00:06]} 40. Kb4 {[%clk 0:00:03.1]} 40... e3 {[%clk 0:00:05.9]} 41. fxe3 {[%clk
0:00:04]} 41... fxe3 {[%clk 0:00:06.8]} 42. c5+ {[%clk 0:00:04.6]} 42... Ka7
{[%clk 0:00:07.5]} 43. Be2 {[%clk 0:00:05.3]} 43... Rxa6 {[%clk 0:00:05]} 44.
Kc3 {[%clk 0:00:03.7]} 44... Re6 {[%clk 0:00:04.7]} 45. b4 {[%clk 0:00:03.9]}
45... Kb7 {[%clk 0:00:03.7]} 46. b5 {[%clk 0:00:04.4]} 46... Kc7 {[%clk
0:00:04.2]} 47. Kd4 {[%clk 0:00:05]} 47... Re8 {[%clk 0:00:03.8]} 48. b6+ {[%clk
0:00:04.8]} 48... Kb7 {[%clk 0:00:02.3]} 49. Bf3+ {[%clk 0:00:04.2]} 49... Ka6
{[%clk 0:00:02.8]} 50. Be2+ {[%clk 0:00:04.1]} 50... Kb7 {[%clk 0:00:03.4]} 51.
Kc4 {[%clk 0:00:04.3]} 51... Re4+ {[%clk 0:00:02.8]} 52. Kb5 {[%clk 0:00:03.8]}
52... Re5 {[%clk 0:00:02.9]} 53. Bf3+ {[%clk 0:00:04.3]} 53... Kb8 {[%clk
0:00:03.2]} 54. Be2 {[%clk 0:00:04.4]} 54... Rf5 {[%clk 0:00:03.2]} 55. Kc6
{[%clk 0:00:04.3]} 55... Rf2 {[%clk 0:00:03.2]} 56. Ba6 {[%clk 0:00:02.9]} 56...
e2 {[%clk 0:00:04.1]} 57. Bxe2 {[%clk 0:00:02.9]} 57... Rxe2 {[%clk 0:00:04.5]}
58. Kb5 {[%clk 0:00:03.3]} 58... Re5 {[%clk 0:00:04.6]} 59. Kc6 {[%clk
0:00:03.4]} 59... Re6+ {[%clk 0:00:05.2]} 60. Kd7 {[%clk 0:00:03.6]} 60... Re5
{[%clk 0:00:04.3]} 61. c6 {[%clk 0:00:03.8]} 61... Rc5 {[%clk 0:00:04.6]} 62.
c7+ {[%clk 0:00:03.8]} 62... Kb7 {[%clk 0:00:04.9]} 63. Kd6 {[%clk 0:00:04.7]}
63... Rc6+ {[%clk 0:00:05]} 64. Kd7 {[%clk 0:00:05.2]} 64... Rc1 {[%clk
0:00:03.7]} 65. Kd6 {[%clk 0:00:04.1]} 65... Kxb6 {[%clk 0:00:03.6]} 66. Kd7
{[%clk 0:00:04.7]} 66... Rxc7+ {[%clk 0:00:03.9]} 0-1

[Event "Early-Titled-Tuesday-Blitz-September-05-2023"]
[Site "Chess.com"]
[Date "2023.09.05"]
[Round "5"]
[White "UmarovSabir"]
[Black "Chessbard1972"]
[Result "0-1"]
[WhiteElo "2319"]
[BlackElo "2536"]
[TimeControl "180+1"]
[EndTime "8:55:44 PDT"]
[Termination "Chessbard1972 won on time"]

1. e4 {[%clk 0:02:59.8]} 1... e5 {[%clk 0:02:59.1]} 2. Nf3 {[%clk 0:02:59.4]}
2... Nc6 {[%clk 0:02:58.3]} 3. Bc4 {[%clk 0:02:59.1]} 3... Nf6 {[%clk
0:02:57.9]} 4. d3 {[%clk 0:02:58.8]} 4... Bc5 {[%clk 0:02:55]} 5. a3 {[%clk
0:02:57.3]} 5... d6 {[%clk 0:02:53.1]} 6. Nc3 {[%clk 0:02:56.3]} 6... h6 {[%clk
0:02:52.6]} 7. Be3 {[%clk 0:02:56.2]} 7... Bb6 {[%clk 0:02:51.6]} 8. h3 {[%clk
0:02:55.1]} 8... Be6 {[%clk 0:02:50.2]} 9. Nd5 {[%clk 0:02:48.8]} 9... Bxe3
{[%clk 0:02:49.9]} 10. fxe3 {[%clk 0:02:47.4]} 10... Na5 {[%clk 0:02:40.2]} 11.
Ba2 {[%clk 0:02:19.7]} 11... b5 {[%clk 0:02:33.2]} 12. b4 {[%clk 0:02:10]} 12...
Nb7 {[%clk 0:02:30]} 13. O-O {[%clk 0:02:09.2]} 13... Bxd5 {[%clk 0:02:17.5]}
14. exd5 {[%clk 0:02:01.3]} 14... O-O {[%clk 0:02:17.3]} 15. e4 {[%clk
0:01:57.2]} 15... Qe7 {[%clk 0:02:05.9]} 16. c4 {[%clk 0:01:54.4]} 16... a6
{[%clk 0:02:02.6]} 17. a4 {[%clk 0:01:46.8]} 17... Nd8 {[%clk 0:01:59.6]} 18.
cxb5 {[%clk 0:01:41.2]} 18... axb5 {[%clk 0:01:58.9]} 19. axb5 {[%clk
0:01:32.6]} 19... Rb8 {[%clk 0:01:55.6]} 20. Bc4 {[%clk 0:01:32.3]} 20... Nh5
{[%clk 0:01:52]} 21. Nd4 {[%clk 0:01:03.4]} 21... Nf4 {[%clk 0:01:43]} 22. Nf5
{[%clk 0:00:39.2]} 22... Qg5 {[%clk 0:01:41.9]} 23. Qg4 {[%clk 0:00:39.6]} 23...
g6 {[%clk 0:01:32.1]} 24. Qxg5 {[%clk 0:00:29.6]} 24... hxg5 {[%clk 0:01:31.4]}
25. Ne7+ {[%clk 0:00:28.3]} 25... Kg7 {[%clk 0:01:30.7]} 26. Ra7 {[%clk
0:00:28.1]} 26... Rb7 {[%clk 0:01:19.3]} 27. Rfa1 {[%clk 0:00:23.8]} 27... Re8
{[%clk 0:01:03.1]} 28. Nc6 {[%clk 0:00:15.1]} 28... Rxa7 {[%clk 0:00:58.1]} 29.
Rxa7 {[%clk 0:00:14.4]} 29... Nxc6 {[%clk 0:00:57.9]} 30. bxc6 {[%clk 0:00:14]}
30... Re7 {[%clk 0:00:54.7]} 31. b5 {[%clk 0:00:12.7]} 31... Kf6 {[%clk
0:00:50.4]} 32. b6 {[%clk 0:00:09.9]} 32... cxb6 {[%clk 0:00:48.7]} 33. c7
{[%clk 0:00:07.6]} 33... Re8 {[%clk 0:00:46.3]} 34. Ba6 {[%clk 0:00:07.8]} 34...
Nxd3 {[%clk 0:00:44.3]} 35. c8=Q {[%clk 0:00:07.1]} 35... Rxc8 {[%clk
0:00:44.5]} 36. Bxc8 {[%clk 0:00:08]} 36... Nc5 {[%clk 0:00:44.2]} 37. Kf2
{[%clk 0:00:02.9]} 37... Nxe4+ {[%clk 0:00:43.7]} 38. Ke3 {[%clk 0:00:03.7]}
38... Nc3 {[%clk 0:00:43.3]} 39. Bb7 {[%clk 0:00:03.1]} 39... b5 {[%clk
0:00:37]} 40. Bc6 {[%clk 0:00:02.9]} 40... b4 {[%clk 0:00:36.3]} 41. Rb7 {[%clk
0:00:03.4]} 41... Kg7 {[%clk 0:00:32.4]} 42. Rxb4 {[%clk 0:00:03.5]} 42... f5
{[%clk 0:00:32.4]} 43. Rb7+ {[%clk 0:00:03.3]} 43... Kh6 {[%clk 0:00:31.1]} 44.
Rd7 {[%clk 0:00:04.2]} 44... f4+ {[%clk 0:00:29.7]} 45. Kf2 {[%clk 0:00:04.1]}
45... Ne4+ {[%clk 0:00:28.7]} 46. Kf3 {[%clk 0:00:04.2]} 46... Nd2+ {[%clk
0:00:27.8]} 47. Ke2 {[%clk 0:00:04.5]} 47... Ne4 {[%clk 0:00:26.4]} 48. Rd8
{[%clk 0:00:04]} 48... g4 {[%clk 0:00:24.7]} 49. hxg4 {[%clk 0:00:04.1]} 49...
Kg5 {[%clk 0:00:25.1]} 50. Kf3 {[%clk 0:00:04.1]} 50... Nd2+ {[%clk 0:00:24.3]}
51. Ke2 {[%clk 0:00:05]} 51... Ne4 {[%clk 0:00:24.2]} 52. Rg8 {[%clk 0:00:04.8]}
52... Ng3+ {[%clk 0:00:21.2]} 53. Ke1 {[%clk 0:00:03.5]} 53... e4 {[%clk
0:00:21]} 54. Be8 {[%clk 0:00:03.5]} 54... Kxg4 {[%clk 0:00:19.8]} 55. Rh8
{[%clk 0:00:04.4]} 55... g5 {[%clk 0:00:18.7]} 56. Rh6 {[%clk 0:00:04]} 56... f3
{[%clk 0:00:13.4]} 57. gxf3+ {[%clk 0:00:03.6]} 57... exf3 {[%clk 0:00:13.4]}
58. Bd7+ {[%clk 0:00:03.5]} 58... Kf4 {[%clk 0:00:12.9]} 59. Rxd6 {[%clk
0:00:04.4]} 59... Ne4 {[%clk 0:00:10.4]} 60. Rg6 {[%clk 0:00:03.6]} 60... Ke3
{[%clk 0:00:07.5]} 61. Re6 {[%clk 0:00:02.1]} 61... g4 {[%clk 0:00:05.5]} 0-1